fUSD/lending_fUSD_20260622
["ID","MTS","AMOUNT","RATE_DAILY","PERIOD"]
[426064891,1782132689000,-500.0,0.00028493,2]
[426064887,1782132689000,-500.0,0.00028493,2]
[426064893,1782132689000,-500.0,0.00028493,2]
[426064899,1782132689000,-550.96606208,0.00028493,2]
[426064896,1782132689000,-539.49706211,0.00028493,2]
[426064898,1782132689000,-220.14340277,0.00028493,2]
[426064902,1782132689000,-500.0,0.00028493,2]
[426064905,1782132689000,-266.73405548,0.00028493,2]
[426064900,1782132689000,-500.0,0.00028493,2]
[426064901,1782132689000,-500.0,0.00028493,2]
[426064934,1782132689000,-545.6,0.00028493,2]
[426064943,1782132689000,-500.0,0.00028493,2]
[426064929,1782132689000,-2231.74,0.00028493,2]
[426064966,1782132689000,-500.0,0.00028493,2]
[426064963,1782132689000,-500.0,0.00028493,2]
[426064973,1782132689000,-173.11,0.00028538,2]
[426064974,1782132689000,-173.13,0.00028541,2]
[426064965,1782132689000,-500.0,0.00028493,2]
[426064968,1782132689000,-500.0,0.00028493,2]
[426064967,1782132689000,-500.0,0.00028493,2]
[426064964,1782132689000,-500.0,0.00028493,2]
[426064972,1782132689000,-4173.17,0.00028529,2]
[426064971,1782132689000,-500.0,0.00028493,2]
[426064970,1782132689000,-500.0,0.00028493,2]
[426064959,1782132689000,-500.0,0.00028493,2]
[426064969,1782132689000,-500.0,0.00028493,2]
[426064981,1782132689000,-173.13,0.00028648,30]
[426064976,1782132689000,-173.11,0.00028591,7]
[426064979,1782132689000,-192.78,0.00028603,2]
[426064985,1782132689000,-173.11,0.00028698,2]
[426064977,1782132689000,-173.13,0.00028595,7]
[426064930,1782132689000,-568.53,0.00028493,2]
[426064984,1782132689000,-425.63,0.00028677,2]
[426064978,1782132689000,-151.97,0.000286,7]
[426064983,1782132689000,-619.15,0.00028673,2]
[426064982,1782132689000,-642.58,0.00028673,30]
[426064986,1782132689000,-173.13,0.00028701,2]
[426064975,1782132689000,-636.7,0.00028577,2]
[426064961,1782132689000,-500.0,0.00028493,2]
[426064980,1782132689000,-173.11,0.00028645,30]
[426064960,1782132689000,-606.62,0.00028493,2]
[426064957,1782132689000,-500.0,0.00028493,2]
[426064938,1782132689000,-500.0,0.00028493,2]
[426064932,1782132689000,-1188.04,0.00028493,2]
[426064937,1782132689000,-4712.54,0.00028493,2]
[426064933,1782132689000,-500.0,0.00028493,2]
[426064939,1782132689000,-500.0,0.00028493,2]
[426064931,1782132689000,-500.0,0.00028493,2]
[426064941,1782132689000,-500.0,0.00028493,2]
[426064951,1782132689000,-609.0725513,0.00028493,2]
[426064950,1782132689000,-707.33,0.00028493,2]
[426064945,1782132689000,-1460.48,0.00028493,2]
[426064944,1782132689000,-500.0,0.00028493,2]
[426064936,1782132689000,-500.0,0.00028493,2]
[426064940,1782132689000,-839.47,0.00028493,2]
[426064942,1782132689000,-500.0,0.00028493,2]
[426064956,1782132689000,-275.02,0.00028493,2]
[426064953,1782132689000,-723.63,0.00028493,2]
[426064962,1782132689000,-500.0,0.00028493,2]
[426064958,1782132689000,-500.0,0.00028493,2]
[426064954,1782132689000,-695.99,0.00028493,2]
[426064952,1782132689000,-500.0,0.00028493,2]
[426064946,1782132689000,-500.0,0.00028493,2]
[426064949,1782132689000,-847.56,0.00028493,2]
[426064947,1782132689000,-500.0,0.00028493,2]
[426064948,1782132689000,-944.56,0.00028493,2]
[426064955,1782132689000,-500.0,0.00028493,2]
[426065007,1782132690000,-500.0,0.00028767,2]
[426065012,1782132690000,-500.0,0.00028767,2]
[426065011,1782132690000,-349.59850454,0.00028767,2]
[426065015,1782132690000,-601.32,0.00028767,2]
[426065016,1782132690000,-809.71,0.00028767,2]
[426065014,1782132690000,-500.0,0.00028767,2]
[426065018,1782132690000,-500.0,0.00028767,2]
[426065019,1782132690000,-500.0,0.00028767,2]
[426065017,1782132690000,-521.99,0.00028767,2]
[426065024,1782132690000,-500.0,0.00028767,2]
[426065021,1782132690000,-500.0,0.00028767,2]
[426065020,1782132690000,-500.0,0.00028767,2]
[426065022,1782132690000,-500.0,0.00028767,2]
[426065025,1782132690000,-549.59098881,0.00028767,2]
[426065026,1782132690000,-500.0,0.00028767,2]
[426065027,1782132690000,-500.0,0.00028767,2]
[426065028,1782132690000,-500.0,0.00028767,2]
[426065008,1782132690000,-500.0,0.00028767,2]
[426065023,1782132690000,-599.18,0.00028767,2]
[426065009,1782132690000,-500.0,0.00028767,2]
[426064994,1782132690000,-535.03,0.00028767,2]
[426065005,1782132690000,-500.0,0.00028767,2]
[426064991,1782132690000,-503.9,0.00028767,2]
[426064989,1782132690000,-483.72869565,0.00028766,2]
[426064995,1782132690000,-164.01,0.00028767,2]
[426064992,1782132690000,-643.69,0.00028767,2]
[426064988,1782132690000,-173.13,0.00028754,7]
[426064987,1782132690000,-173.11,0.00028752,7]
[426064993,1782132690000,-332.66,0.00028767,2]
[426064990,1782132690000,-151.80993,0.00028767,2]
[426064996,1782132690000,-500.0,0.00028767,2]
[426064998,1782132690000,-500.0,0.00028767,2]
[426064997,1782132690000,-500.0,0.00028767,2]
[426064999,1782132690000,-500.0,0.00028767,2]
[426065000,1782132690000,-500.0,0.00028767,2]
[426065004,1782132690000,-432.12031973,0.00028767,2]
[426065002,1782132690000,-500.0,0.00028767,2]
[426065003,1782132690000,-500.0,0.00028767,2]
[426065001,1782132690000,-500.0,0.00028767,2]
[426065006,1782132690000,-500.0,0.00028767,2]
[426065013,1782132690000,-512.55747387,0.00028767,2]
[426065010,1782132690000,-636.01,0.00028767,2]
[426065030,1782132690000,-500.0,0.00028767,2]
[426065029,1782132690000,-500.0,0.00028767,2]
[426065031,1782132690000,-500.0,0.00028767,2]
[426065057,1782132690000,-159.878422,0.00028767,2]
[426065058,1782132690000,-500.0,0.00028767,2]
[426065064,1782132690000,-321.40932691,0.00028767,2]
[426065060,1782132690000,-220.54548469,0.00028767,2]
[426065062,1782132690000,-500.0,0.00028767,2]
[426065061,1782132690000,-500.0,0.00028767,2]
[426065059,1782132690000,-500.0,0.00028767,2]
[426065063,1782132690000,-500.0,0.00028767,2]
[426065065,1782132690000,-738.63,0.00028767,2]
[426065067,1782132690000,-152.3,0.00028767,2]
[426065068,1782132690000,-500.0,0.00028767,2]
[426065069,1782132690000,-500.0,0.00028767,2]
[426065073,1782132690000,-500.0,0.00028767,2]
[426065072,1782132690000,-500.0,0.00028767,2]
[426065075,1782132690000,-500.0,0.00028767,2]
[426065070,1782132690000,-500.0,0.00028767,2]
[426065071,1782132690000,-500.0,0.00028767,2]
[426065074,1782132690000,-500.0,0.00028767,2]
[426065032,1782132690000,-500.0,0.00028767,2]
[426065056,1782132690000,-159.878422,0.00028767,2]
[426065054,1782132690000,-159.878422,0.00028767,2]
[426065066,1782132690000,-500.0,0.00028767,2]
[426065053,1782132690000,-159.878422,0.00028767,2]
[426065033,1782132690000,-500.0,0.00028767,2]
[426065055,1782132690000,-500.0,0.00028767,2]
[426065035,1782132690000,-623.74,0.00028767,2]
[426065034,1782132690000,-500.0,0.00028767,2]
[426065036,1782132690000,-680.81,0.00028767,2]
[426065037,1782132690000,-322.63686143,0.00028767,2]
[426065043,1782132690000,-500.0,0.00028767,2]
[426065042,1782132690000,-485.9,0.00028767,2]
[426065041,1782132690000,-500.0,0.00028767,2]
[426065039,1782132690000,-500.0,0.00028767,2]
[426065038,1782132690000,-500.0,0.00028767,2]
[426065045,1782132690000,-530.66,0.00028767,2]
[426065044,1782132690000,-500.0,0.00028767,2]
[426065046,1782132690000,-159.878422,0.00028767,2]
[426065048,1782132690000,-159.878422,0.00028767,2]
[426065047,1782132690000,-159.878422,0.00028767,2]
[426065049,1782132690000,-159.878422,0.00028767,2]
[426065051,1782132690000,-159.878422,0.00028767,2]
[426065040,1782132690000,-500.0,0.00028767,2]
[426065050,1782132690000,-159.878422,0.00028767,2]
[426065052,1782132690000,-159.878422,0.00028767,2]
[426065122,1782132691000,-500.0,0.00028767,2]
[426065116,1782132691000,-548.50133098,0.00028767,2]
[426065113,1782132691000,-500.0,0.00028767,2]
[426065117,1782132691000,-500.0,0.00028767,2]
[426065114,1782132691000,-514.55,0.00028767,2]
[426065110,1782132691000,-1174.76,0.00028767,2]
[426065111,1782132691000,-716.59,0.00028767,2]
[426065105,1782132691000,-500.0,0.00028767,2]
[426065103,1782132691000,-500.0,0.00028767,2]
[426065115,1782132691000,-500.0,0.00028767,2]
[426065101,1782132691000,-500.0,0.00028767,2]
[426065112,1782132691000,-500.0,0.00028767,2]
[426065118,1782132691000,-500.0,0.00028767,2]
[426065130,1782132691000,-500.0,0.00028767,2]
[426065119,1782132691000,-500.0,0.00028767,2]
[426065121,1782132691000,-500.0,0.00028767,2]
[426065124,1782132691000,-500.0,0.00028767,2]
[426065134,1782132691000,-500.0,0.00028767,2]
[426065123,1782132691000,-500.0,0.00028767,2]
[426065135,1782132691000,-536.15,0.00028767,2]
[426065129,1782132691000,-524.25,0.00028767,2]
[426065131,1782132691000,-485.42,0.00028767,2]
[426065125,1782132691000,-717.75,0.00028767,2]
[426065127,1782132691000,-500.0,0.00028767,2]
[426065132,1782132691000,-500.0,0.00028767,2]
[426065102,1782132691000,-500.0,0.00028767,2]
[426065120,1782132691000,-500.0,0.00028767,2]
[426065104,1782132691000,-500.0,0.00028767,2]
[426065080,1782132691000,-500.0,0.00028767,2]
[426065100,1782132691000,-1119.11,0.00028767,2]
[426065133,1782132691000,-576.2,0.00028767,2]
[426065077,1782132691000,-571.89,0.00028767,2]
[426065085,1782132691000,-500.0,0.00028767,2]
[426065078,1782132691000,-500.0,0.00028767,2]
[426065076,1782132691000,-500.0,0.00028767,2]
[426065079,1782132691000,-500.0,0.00028767,2]
[426065086,1782132691000,-500.0,0.00028767,2]
[426065083,1782132691000,-500.0,0.00028767,2]
[426065084,1782132691000,-500.0,0.00028767,2]
[426065081,1782132691000,-523.76,0.00028767,2]
[426065082,1782132691000,-389.06,0.00028767,2]
[426065089,1782132691000,-500.0,0.00028767,2]
[426065109,1782132691000,-409.17212199,0.00028767,2]
[426065088,1782132691000,-658.57,0.00028767,2]
[426065091,1782132691000,-500.0,0.00028767,2]
[426065092,1782132691000,-500.0,0.00028767,2]
[426065097,1782132691000,-500.0,0.00028767,2]
[426065093,1782132691000,-500.0,0.00028767,2]
[426065095,1782132691000,-500.0,0.00028767,2]
[426065094,1782132691000,-900.21,0.00028767,2]
[426065096,1782132691000,-500.0,0.00028767,2]
[426065106,1782132691000,-500.0,0.00028767,2]
[426065099,1782132691000,-500.0,0.00028767,2]
[426065098,1782132691000,-500.0,0.00028767,2]
[426065108,1782132691000,-500.0,0.00028767,2]
[426065107,1782132691000,-1240.13,0.00028767,2]
[426065087,1782132691000,-500.0,0.00028767,2]
[426065128,1782132691000,-500.0,0.00028767,2]
[426065090,1782132691000,-500.0,0.00028767,2]
[426065141,1782132691000,-596.45,0.00028767,2]
[426065167,1782132691000,-500.0,0.00028767,2]
[426065170,1782132691000,-506.89,0.00028767,2]
[426065160,1782132691000,-500.0,0.00028767,2]
[426065171,1782132691000,-532.59,0.00028767,2]
[426065175,1782132691000,-1578.36,0.00028767,2]
[426065179,1782132691000,-500.0,0.00028767,2]
[426065173,1782132691000,-500.0,0.00028767,2]
[426065174,1782132691000,-1096.6,0.00028767,2]
[426065180,1782132691000,-500.0,0.00028767,2]
[426065181,1782132691000,-500.0,0.00028767,2]
[426065176,1782132691000,-827.1,0.00028767,2]
[426065188,1782132691000,-413.19161174,0.00028767,2]
[426065183,1782132691000,-2823.9,0.00028767,2]
[426065182,1782132691000,-500.0,0.00028767,2]
[426065177,1782132691000,-3740.4,0.00028767,2]
[426065172,1782132691000,-500.0,0.00028767,2]
[426065178,1782132691000,-500.0,0.00028767,2]
[426065184,1782132691000,-500.0,0.00028767,2]
[426065189,1782132691000,-500.0,0.00028767,2]
[426065186,1782132691000,-500.0,0.00028767,2]
[426065187,1782132691000,-500.0,0.00028767,2]
[426065192,1782132691000,-766.88,0.00028767,2]
[426065191,1782132691000,-500.0,0.00028767,2]
[426065185,1782132691000,-224.45375837,0.00028767,2]
[426065194,1782132691000,-1209.24,0.00028767,2]
[426065193,1782132691000,-500.0,0.00028767,2]
[426065126,1782132691000,-500.0,0.00028767,2]
[426065165,1782132691000,-716.56,0.00028767,2]
[426065168,1782132691000,-500.0,0.00028767,2]
[426065190,1782132691000,-645.41,0.00028767,2]
[426065166,1782132691000,-500.0,0.00028767,2]
[426065169,1782132691000,-211.72,0.00028767,2]
[426065144,1782132691000,-773.21,0.00028767,2]
[426065137,1782132691000,-500.0,0.00028767,2]
[426065139,1782132691000,-500.0,0.00028767,2]
[426065138,1782132691000,-658.76,0.00028767,2]
[426065143,1782132691000,-724.98,0.00028767,2]
[426065140,1782132691000,-500.0,0.00028767,2]
[426065136,1782132691000,-500.0,0.00028767,2]
[426065145,1782132691000,-500.0,0.00028767,2]
[426065142,1782132691000,-500.0,0.00028767,2]
[426065148,1782132691000,-500.0,0.00028767,2]
[426065149,1782132691000,-179.30715813,0.00028767,2]
[426065158,1782132691000,-187.17150752,0.00028767,2]
[426065146,1782132691000,-500.0,0.00028767,2]
[426065150,1782132691000,-500.0,0.00028767,2]
[426065162,1782132691000,-500.0,0.00028767,2]
[426065163,1782132691000,-518.24,0.00028767,2]
[426065164,1782132691000,-500.0,0.00028767,2]
[426065161,1782132691000,-964.0,0.00028767,2]
[426065152,1782132691000,-500.0,0.00028767,2]
[426065157,1782132691000,-500.0,0.00028767,2]
[426065159,1782132691000,-500.0,0.00028767,2]
[426065153,1782132691000,-500.0,0.00028767,2]
[426065147,1782132691000,-500.0,0.00028767,2]
[426065155,1782132691000,-500.0,0.00028767,2]
[426065156,1782132691000,-500.0,0.00028767,2]
[426065151,1782132691000,-500.0,0.00028767,2]
[426065154,1782132691000,-500.0,0.00028767,2]
[426065234,1782132692000,-750.36,0.00028767,2]
[426065237,1782132692000,-500.0,0.00028767,2]
[426065241,1782132692000,-4511.56,0.00028767,2]
[426065231,1782132692000,-500.0,0.00028767,2]
[426065225,1782132692000,-824.11,0.00028767,2]
[426065227,1782132692000,-635.4,0.00028767,2]
[426065229,1782132692000,-500.0,0.00028767,2]
[426065226,1782132692000,-500.0,0.00028767,2]
[426065223,1782132692000,-500.0,0.00028767,2]
[426065224,1782132692000,-1542.67,0.00028767,2]
[426065228,1782132692000,-500.0,0.00028767,2]
[426065240,1782132692000,-536.32,0.00028767,2]
[426065236,1782132692000,-500.0,0.00028767,2]
[426065232,1782132692000,-500.0,0.00028767,2]
[426065233,1782132692000,-341.63254193,0.00028767,2]
[426065235,1782132692000,-596.38,0.00028767,2]
[426065239,1782132692000,-166.93,0.00028767,2]
[426065242,1782132692000,-773.34,0.00028767,2]
[426065244,1782132692000,-500.0,0.00028767,2]
[426065254,1782132692000,-824.69,0.00028767,2]
[426065255,1782132692000,-220.30436667,0.00028767,2]
[426065243,1782132692000,-1625.31,0.00028767,2]
[426065246,1782132692000,-500.0,0.00028767,2]
[426065221,1782132692000,-228.74958033,0.00028767,2]
[426065253,1782132692000,-500.0,0.00028767,2]
[426065238,1782132692000,-500.0,0.00028767,2]
[426065222,1782132692000,-500.0,0.00028767,2]
[426065201,1782132692000,-500.0,0.00028767,2]
[426065230,1782132692000,-500.0,0.00028767,2]
[426065249,1782132692000,-192.20876084,0.00028767,2]
[426065195,1782132692000,-1589.11,0.00028767,2]
[426065197,1782132692000,-926.45,0.00028767,2]
[426065196,1782132692000,-500.0,0.00028767,2]
[426065208,1782132692000,-500.0,0.00028767,2]
[426065207,1782132692000,-500.0,0.00028767,2]
[426065206,1782132692000,-500.0,0.00028767,2]
[426065203,1782132692000,-604.61,0.00028767,2]
[426065204,1782132692000,-500.0,0.00028767,2]
[426065200,1782132692000,-546.27976391,0.00028767,2]
[426065198,1782132692000,-4341.3,0.00028767,2]
[426065202,1782132692000,-500.0,0.00028767,2]
[426065199,1782132692000,-500.0,0.00028767,2]
[426065205,1782132692000,-1013.11,0.00028767,2]
[426065210,1782132692000,-219.68,0.00028767,2]
[426065212,1782132692000,-500.0,0.00028767,2]
[426065218,1782132692000,-500.0,0.00028767,2]
[426065209,1782132692000,-500.0,0.00028767,2]
[426065216,1782132692000,-500.0,0.00028767,2]
[426065211,1782132692000,-1057.14,0.00028767,2]
[426065213,1782132692000,-500.0,0.00028767,2]
[426065214,1782132692000,-186.64,0.00028767,2]
[426065217,1782132692000,-597.7,0.00028767,2]
[426065215,1782132692000,-500.0,0.00028767,2]
[426065220,1782132692000,-500.0,0.00028767,2]
[426065219,1782132692000,-923.61,0.00028767,2]
[426065245,1782132692000,-500.0,0.00028767,2]
[426065248,1782132692000,-500.0,0.00028767,2]
[426065247,1782132692000,-500.0,0.00028767,2]
[426065280,1782132692000,-285.95,0.00028767,2]
[426065279,1782132692000,-500.0,0.00028767,2]
[426065284,1782132692000,-500.0,0.00028767,2]
[426065285,1782132692000,-448.71699293,0.00028767,2]
[426065286,1782132692000,-500.0,0.00028767,2]
[426065287,1782132692000,-500.0,0.00028767,2]
[426065288,1782132692000,-500.0,0.00028767,2]
[426065291,1782132692000,-772.24,0.00028767,2]
[426065289,1782132692000,-647.54,0.00028767,2]
[426065290,1782132692000,-500.0,0.00028767,2]
[426065292,1782132692000,-500.0,0.00028767,2]
[426065293,1782132692000,-1194.87,0.00028767,2]
[426065295,1782132692000,-572.74,0.00028767,2]
[426065297,1782132692000,-622.93,0.00028767,2]
[426065296,1782132692000,-855.41,0.00028767,2]
[426065298,1782132692000,-500.0,0.00028767,2]
[426065299,1782132692000,-261.55061437,0.00028767,2]
[426065300,1782132692000,-569.08,0.00028767,2]
[426065301,1782132692000,-500.0,0.00028767,2]
[426065303,1782132692000,-500.0,0.00028767,2]
[426065305,1782132692000,-680.32,0.00028767,2]
[426065302,1782132692000,-1202.22,0.00028767,2]
[426065307,1782132692000,-300.0,0.00028767,2]
[426065304,1782132692000,-500.0,0.00028767,2]
[426065306,1782132692000,-934.58,0.00028767,2]
[426065283,1782132692000,-713.09,0.00028767,2]
[426065282,1782132692000,-663.75,0.00028767,2]
[426065294,1782132692000,-882.55,0.00028767,2]
[426065278,1782132692000,-528.45,0.00028767,2]
[426065281,1782132692000,-500.0,0.00028767,2]
[426065251,1782132692000,-1674.8,0.00028767,2]
[426065250,1782132692000,-566.93,0.00028767,2]
[426065252,1782132692000,-500.0,0.00028767,2]
[426065256,1782132692000,-2000.0,0.00028767,2]
[426065261,1782132692000,-500.0,0.00028767,2]
[426065264,1782132692000,-500.0,0.00028767,2]
[426065263,1782132692000,-500.0,0.00028767,2]
[426065258,1782132692000,-3964.2,0.00028767,2]
[426065260,1782132692000,-500.0,0.00028767,2]
[426065262,1782132692000,-500.0,0.00028767,2]
[426065265,1782132692000,-500.0,0.00028767,2]
[426065257,1782132692000,-500.0,0.00028767,2]
[426065259,1782132692000,-1024.72,0.00028767,2]
[426065276,1782132692000,-500.0,0.00028767,2]
[426065267,1782132692000,-555.85,0.00028767,2]
[426065275,1782132692000,-500.0,0.00028767,2]
[426065272,1782132692000,-500.0,0.00028767,2]
[426065273,1782132692000,-569.52,0.00028767,2]
[426065271,1782132692000,-500.0,0.00028767,2]
[426065274,1782132692000,-500.0,0.00028767,2]
[426065269,1782132692000,-500.0,0.00028767,2]
[426065268,1782132692000,-186.56,0.00028767,2]
[426065266,1782132692000,-500.0,0.00028767,2]
[426065277,1782132692000,-637.77,0.00028767,2]
[426065270,1782132692000,-500.0,0.00028767,2]
[426065349,1782132693000,-4712.54,0.00028767,2]
[426065346,1782132693000,-623.59140307,0.00028767,2]
[426065353,1782132693000,-500.0,0.00028767,2]
[426065343,1782132693000,-1188.04,0.00028767,2]
[426065345,1782132693000,-545.6,0.00028767,2]
[426065338,1782132693000,-2159.89,0.00028767,2]
[426065341,1782132693000,-2231.74,0.00028767,2]
[426065340,1782132693000,-500.0,0.00028767,2]
[426065332,1782132693000,-3873.02,0.00028767,2]
[426065336,1782132693000,-500.0,0.00028767,2]
[426065350,1782132693000,-500.0,0.00028767,2]
[426065344,1782132693000,-500.0,0.00028767,2]
[426065352,1782132693000,-839.47,0.00028767,2]
[426065363,1782132693000,-723.63,0.00028767,2]
[426065348,1782132693000,-500.0,0.00028767,2]
[426065347,1782132693000,-500.0,0.00028767,2]
[426065354,1782132693000,-500.0,0.00028767,2]
[426065357,1782132693000,-336.96,0.00028767,2]
[426065356,1782132693000,-1460.48,0.00028767,2]
[426065365,1782132693000,-500.0,0.00028767,2]
[426065361,1782132693000,-707.33,0.00028767,2]
[426065362,1782132693000,-500.0,0.00028767,2]
[426065359,1782132693000,-944.56,0.00028767,2]
[426065355,1782132693000,-500.0,0.00028767,2]
[426065358,1782132693000,-500.0,0.00028767,2]
[426065333,1782132693000,-1885.55,0.00028767,2]
[426065351,1782132693000,-500.0,0.00028767,2]
[426065337,1782132693000,-700.97,0.00028767,2]
[426065309,1782132693000,-500.0,0.00028767,2]
[426065339,1782132693000,-500.0,0.00028767,2]
[426065360,1782132693000,-847.56,0.00028767,2]
[426065308,1782132693000,-352.69,0.00028767,2]
[426065311,1782132693000,-500.0,0.00028767,2]
[426065310,1782132693000,-301.31592039,0.00028767,2]
[426065312,1782132693000,-500.0,0.00028767,2]
[426065318,1782132693000,-500.0,0.00028767,2]
[426065315,1782132693000,-500.0,0.00028767,2]
[426065314,1782132693000,-890.14,0.00028767,2]
[426065313,1782132693000,-3415.05,0.00028767,2]
[426065320,1782132693000,-500.0,0.00028767,2]
[426065317,1782132693000,-287.95,0.00028767,2]
[426065316,1782132693000,-338.08546061,0.00028767,2]
[426065335,1782132693000,-500.0,0.00028767,2]
[426065319,1782132693000,-332.86244428,0.00028767,2]
[426065331,1782132693000,-500.0,0.00028767,2]
[426065323,1782132693000,-153.0,0.00028767,2]
[426065321,1782132693000,-500.0,0.00028767,2]
[426065324,1782132693000,-526.9,0.00028767,2]
[426065329,1782132693000,-500.0,0.00028767,2]
[426065328,1782132693000,-541.69,0.00028767,2]
[426065322,1782132693000,-507.74,0.00028767,2]
[426065326,1782132693000,-500.0,0.00028767,2]
[426065330,1782132693000,-500.0,0.00028767,2]
[426065327,1782132693000,-739.58,0.00028767,2]
[426065334,1782132693000,-500.0,0.00028767,2]
[426065342,1782132693000,-500.0,0.00028767,2]
[426065325,1782132693000,-500.0,0.00028767,2]
[426065364,1782132693000,-695.99,0.00028767,2]
[426065374,1782132693000,-638.24,0.00028767,2]
[426065369,1782132693000,-606.62,0.00028767,2]
[426065396,1782132693000,-173.13,0.00028913,7]
[426065398,1782132693000,-162.0,0.00028948,30]
[426065397,1782132693000,-187.0,0.00028925,5]
[426065399,1782132693000,-162.0,0.00028948,30]
[426065406,1782132693000,-2011.06046439,0.00028953,14]
[426065414,1782132693000,-500.0,0.00029,2]
[426065410,1782132693000,-166.0,0.00028955,30]
[426065404,1782132693000,-166.0,0.00028948,30]
[426065412,1782132693000,-173.11,0.00028965,30]
[426065408,1782132693000,-5307.2203836,0.00028953,14]
[426065402,1782132693000,-595.0,0.00028948,30]
[426065405,1782132693000,-309.0,0.00028948,30]
[426065411,1782132693000,-155.0,0.00028955,30]
[426065409,1782132693000,-7180.8561,0.00028953,14]
[426065413,1782132693000,-173.13,0.00028967,30]
[426065407,1782132693000,-3547.74903779,0.00028953,14]
[426065403,1782132693000,-155.0,0.00028948,30]
[426065415,1782132693000,-500.0,0.00029,2]
[426065418,1782132693000,-500.0,0.00029,2]
[426065416,1782132693000,-500.0,0.00029,2]
[426065422,1782132693000,-528.78557908,0.00029,2]
[426065417,1782132693000,-500.0,0.00029,2]
[426065420,1782132693000,-500.0,0.00029,2]
[426065419,1782132693000,-500.0,0.00029,2]
[426065424,1782132693000,-173.11,0.00029019,2]
[426065394,1782132693000,-642.58,0.00028892,7]
[426065395,1782132693000,-173.11,0.00028912,7]
[426065421,1782132693000,-507.1,0.00029,2]
[426065390,1782132693000,-173.13,0.0002886,2]
[426065401,1782132693000,-390.0,0.00028948,30]
[426065377,1782132693000,-500.0,0.00028767,2]
[426065370,1782132693000,-483.0,0.00028767,2]
[426065376,1782132693000,-500.0,0.00028767,2]
[426065371,1782132693000,-500.0,0.00028767,2]
[426065372,1782132693000,-500.0,0.00028767,2]
[426065368,1782132693000,-547.07,0.00028767,2]
[426065367,1782132693000,-500.0,0.00028767,2]
[426065373,1782132693000,-500.0,0.00028767,2]
[426065423,1782132693000,-10000.0,0.00029,5]
[426065375,1782132693000,-524.54,0.00028767,2]
[426065384,1782132693000,-636.7,0.000288,30]
[426065378,1782132693000,-500.0,0.00028767,2]
[426065366,1782132693000,-624.8,0.00028767,2]
[426065386,1782132693000,-173.13,0.00028807,30]
[426065385,1782132693000,-173.11,0.00028805,30]
[426065393,1782132693000,-425.63,0.00028885,30]
[426065400,1782132693000,-159.0,0.00028948,30]
[426065391,1782132693000,-779.63984093,0.00028874,2]
[426065387,1782132693000,-4462.0,0.00028813,5]
[426065389,1782132693000,-173.11,0.00028858,2]
[426065383,1782132693000,-172.92302665,0.00028769,2]
[426065382,1782132693000,-403.0,0.00028767,2]